bitfinex/quotes_BTCUSD_20240728
["timestamp","ask_amount","ask_price","bid_price","bid_amount"]
[1722204902830,0.19068428,68282.0,68281.0,0.343325]
[1722204903030,0.13195628,68287.0,68286.0,0.249]
[1722204903231,0.00084,68290.0,68289.0,0.492947]
[1722204903431,0.00084,68290.0,68289.0,1.089843]
[1722204903585,0.00084,68290.0,68289.0,1.21789167]
[1722204903789,0.00084,68290.0,68289.0,1.28279167]
[1722204904412,0.08853855,68290.0,68289.0,0.72989567]
[1722204904612,0.00084,68290.0,68289.0,0.1970579]
[1722204904824,0.00084,68290.0,68289.0,1.1733009]
[1722204905033,0.06661291,68290.0,68289.0,1.1733009]
[1722204905233,0.00084,68290.0,68289.0,1.5266989]
[1722204905456,0.00084,68290.0,68289.0,1.68495847]
[1722204905657,0.00084,68290.0,68289.0,2.13775647]
[1722204905859,0.00084,68290.0,68289.0,1.91920885]
[1722204906059,0.00084,68290.0,68289.0,1.69895847]
[1722204906678,0.00084,68290.0,68289.0,1.74095847]
[1722204906899,0.00084,68290.0,68289.0,1.67695847]
[1722204907098,0.00084,68290.0,68289.0,1.69095847]
[1722204907310,0.00084,68290.0,68289.0,1.45666047]
[1722204907506,0.00084,68290.0,68289.0,0.8617029]
[1722204907747,0.00084,68290.0,68289.0,0.8477029]
[1722204907951,0.00084,68290.0,68289.0,1.0960009]
[1722204908542,0.00084,68290.0,68289.0,0.8757029]
[1722204908746,0.00084,68290.0,68289.0,0.99613419]
[1722204908899,0.00084,68290.0,68289.0,1.23043219]
[1722204909305,0.00084,68290.0,68289.0,0.99613419]
[1722204910154,0.00084,68290.0,68289.0,1.24443219]
[1722204910361,0.00084,68290.0,68289.0,0.99613419]
[1722204910771,0.00084,68290.0,68289.0,0.2250579]
[1722204911006,0.00084,68290.0,68289.0,0.3422069]
[1722204911155,0.00084,68290.0,68289.0,1.0451009]
[1722204911786,0.00084,68290.0,68289.0,1.0311009]
[1722204912031,0.00084,68290.0,68289.0,1.0171009]
[1722204912235,0.00084,68290.0,68289.0,1.11881099]
[1722204912394,0.00084,68290.0,68289.0,1.12181099]
[1722204913802,0.00084,68290.0,68289.0,1.11881099]
[1722204914080,0.00084,68290.0,68289.0,1.13281099]
[1722204914312,0.00084,68290.0,68289.0,1.19811099]
[1722204914502,0.00084,68290.0,68289.0,1.21111099]
[1722204914847,0.00084,68290.0,68289.0,1.43140899]
[1722204914987,0.00084,68290.0,68289.0,1.41840899]
[1722204915191,0.00184,68290.0,68289.0,1.48240899]
[1722204915392,0.00184,68290.0,68289.0,1.41840899]
[1722204915786,0.00184,68290.0,68289.0,1.43240899]
[1722204915987,0.00284,68290.0,68289.0,1.43240899]
[1722204916386,0.00284,68290.0,68289.0,1.63690899]
[1722204916566,0.00284,68290.0,68289.0,1.58690899]
[1722204916896,0.00284,68290.0,68289.0,1.59990899]
[1722204917027,0.00284,68290.0,68289.0,1.58590899]
[1722204917028,0.00084,68290.0,68289.0,1.58590899]
[1722204917227,0.00084,68290.0,68289.0,1.57290899]
[1722204917426,0.00084,68290.0,68289.0,1.58690899]
[1722204917641,0.00084,68290.0,68289.0,1.60090899]
[1722204918059,0.00084,68290.0,68289.0,1.58690899]
[1722204918232,0.00084,68290.0,68289.0,1.57290899]
[1722204918433,0.00084,68290.0,68289.0,1.60090899]
[1722204918834,0.00084,68290.0,68289.0,1.58690899]
[1722204919182,0.00084,68290.0,68289.0,1.43240899]
[1722204919391,0.00084,68290.0,68289.0,1.58690899]
[1722204920519,0.00084,68290.0,68289.0,1.57290899]
[1722204920724,0.00084,68290.0,68289.0,1.13311099]
[1722204920924,0.00084,68290.0,68289.0,1.21211099]
[1722204921103,0.00084,68290.0,68289.0,1.19811099]
[1722204921304,0.00084,68290.0,68289.0,1.21211099]
[1722204921525,0.00084,68290.0,68289.0,1.19811099]
[1722204921751,0.00084,68290.0,68289.0,1.18411099]
[1722204922081,0.00084,68290.0,68289.0,1.21211099]
[1722204923010,0.00084,68290.0,68289.0,1.49640899]
[1722204923212,0.00084,68290.0,68289.0,1.65090899]
[1722204924049,0.00084,68290.0,68289.0,1.60090899]
[1722204924249,0.00084,68290.0,68289.0,1.98520699]
[1722204924453,0.00084,68290.0,68289.0,1.77390899]
[1722204924654,0.00084,68290.0,68289.0,1.67390899]
[1722204925075,0.00084,68290.0,68289.0,1.77390899]
[1722204926956,0.00826,68295.0,68290.0,1.469823]
[1722204927177,0.00826,68295.0,68294.0,0.66904]
[1722204927349,0.00826,68295.0,68294.0,1.605283]
[1722204927551,0.00826,68295.0,68294.0,1.939564]
[1722204927760,0.00826,68295.0,68294.0,2.18526199]
[1722204927959,0.00825,68303.0,68302.0,1.233385]
[1722204928164,0.00825,68307.0,68305.0,0.05]
[1722204928391,0.00825,68307.0,68306.0,1.47919442]
[1722204928584,0.00825,68307.0,68306.0,1.99819798]
[1722204928822,0.00825,68307.0,68306.0,2.03671709]
[1722204928958,0.00825,68307.0,68306.0,2.18697666]
[1722204929340,0.00825,68307.0,68306.0,2.11184687]
[1722204929854,0.00825,68307.0,68306.0,1.54718224]
[1722204930131,0.00825,68307.0,68306.0,1.50603686]
[1722204930335,0.00825,68307.0,68306.0,1.20979686]
[1722204930537,0.00825,68307.0,68306.0,1.18527775]
[1722204930976,0.00825,68307.0,68306.0,0.95103775]
[1722204931190,0.00825,68307.0,68306.0,0.23749818]
[1722204931392,0.00825,68307.0,68306.0,0.26549818]
[1722204931594,0.00825,68307.0,68306.0,0.49973818]
[1722204931797,0.00825,68307.0,68306.0,0.73397818]
[1722204932005,0.00825,68307.0,68306.0,0.83619366]
[1722204932226,0.00825,68307.0,68306.0,1.14923366]
[1722204932646,0.00825,68307.0,68306.0,1.56097366]
[1722204933050,0.00825,68307.0,68306.0,1.54697366]
[1722204933470,0.00825,68307.0,68306.0,1.53297366]
[1722204933678,0.00825,68307.0,68306.0,1.54697366]
[1722204934081,0.00825,68307.0,68306.0,1.59031949]
[1722204934285,0.00825,68307.0,68306.0,1.53297366]
[1722204934432,0.00825,68307.0,68306.0,1.54697366]
[1722204934637,0.00825,68307.0,68306.0,1.56097366]
[1722204934815,0.00825,68307.0,68306.0,1.54697366]
[1722204935017,0.00825,68307.0,68306.0,1.60431949]
[1722204935241,0.00825,68307.0,68306.0,1.54697366]
[1722204935859,0.00825,68307.0,68306.0,1.53297366]
[1722204936259,0.00825,68307.0,68306.0,1.56097366]
[1722204940075,0.00825,68307.0,68306.0,1.14923366]
[1722204940477,0.00825,68307.0,68306.0,1.07043366]
[1722204940872,0.00825,68307.0,68306.0,0.49973818]
[1722204941299,0.00825,68307.0,68306.0,1.04881818]
[1722204941440,0.00825,68307.0,68306.0,0.81457818]
[1722204942096,0.00825,68307.0,68306.0,0.74957818]
[1722204942476,0.00825,68307.0,68306.0,0.73397818]
[1722204942681,0.00825,68307.0,68306.0,0.86526276]
[1722204943902,0.00825,68307.0,68306.0,0.80026276]
[1722204944972,0.00825,68307.0,68306.0,0.86526276]
[1722204945692,0.00825,68307.0,68306.0,0.73397818]
[1722204945693,0.07235,68307.0,68306.0,0.73397818]
[1722204946409,0.00825,68307.0,68306.0,0.73397818]
[1722204947908,0.00825,68307.0,68306.0,0.96821818]
[1722204948526,0.00825,68307.0,68306.0,0.73397818]
[1722204948879,0.00825,68307.0,68306.0,0.96821818]
[1722204949096,0.00825,68307.0,68306.0,1.11847775]
[1722204950670,0.00825,68307.0,68306.0,0.88423775]
[1722204951863,0.02691313,68307.0,68306.0,0.88423775]
[1722204954272,0.02691313,68307.0,68306.0,0.64999775]
[1722204954490,0.02691313,68307.0,68306.0,0.38261818]
[1722204954491,0.09311313,68307.0,68306.0,0.38261818]
[1722204954649,0.07445,68307.0,68306.0,0.49973818]
[1722204954823,0.1583536,68307.0,68306.0,0.49973818]
[1722204955227,0.20219895,68307.0,68306.0,0.49973818]
[1722204955436,0.25518982,68307.0,68306.0,0.47173818]
[1722204955834,0.25518982,68307.0,68306.0,0.48773818]
[1722204956054,0.25518733,68307.0,68306.0,0.48773818]
[1722204956185,0.14555746,68307.0,68306.0,0.48773818]
[1722204956401,0.14555746,68307.0,68306.0,0.47973818]
[1722204956852,0.14555746,68307.0,68306.0,0.12837818]
[1722204957084,0.14555746,68307.0,68306.0,0.12037818]
[1722204957367,0.14555746,68307.0,68306.0,0.12837818]
[1722204957592,0.14555746,68307.0,68306.0,0.25349818]
[1722204957816,0.26267546,68307.0,68306.0,0.06]
[1722204958047,0.8290707,68307.0,68306.0,0.02712526]
[1722204958278,0.57262334,68307.0,68306.0,0.02712526]
[1722204958514,0.501304,68307.0,68306.0,0.031]
[1722204958748,0.57321097,68307.0,68306.0,0.016]
[1722204958973,0.57321097,68307.0,68306.0,0.008]
[1722204959254,0.57321097,68307.0,68306.0,0.009]
[1722204959466,0.81144697,68307.0,68306.0,0.009]
[1722204959695,0.80744697,68307.0,68306.0,0.008]
[1722204960168,0.81144697,68307.0,68306.0,0.008]
[1722204960387,0.57721097,68307.0,68306.0,0.008]
[1722204960617,0.57728078,68307.0,68306.0,0.008]
[1722204960854,0.117127,68302.0,68301.0,0.015]
[1722204961140,0.46016278,68307.0,68305.0,0.015]
[1722204961141,0.28980344,68307.0,68305.0,0.015]
[1722204961381,0.274068,68307.0,68305.0,0.015]
[1722204961621,0.18909585,68306.0,68305.0,0.015]
[1722204961851,0.18909585,68306.0,68304.0,0.044]
[1722204962083,0.07197585,68305.0,68304.0,0.044]
[1722204962275,0.07197585,68305.0,68304.0,0.109]
[1722204962722,0.18909685,68305.0,68304.0,0.109]
[1722204963161,0.07197585,68305.0,68304.0,0.109]
[1722204963384,0.18909685,68305.0,68304.0,0.109]
[1722204963653,0.07453169,68305.0,68304.0,0.109]
[1722204963882,0.22261949,68305.0,68304.0,0.109]
[1722204964094,0.07453169,68305.0,68304.0,0.226123]
[1722204964515,0.07453169,68305.0,68304.0,0.5064069]
[1722204964722,0.02101976,68305.0,68304.0,1.4796989]
[1722204964965,0.02101976,68305.0,68304.0,1.3251989]
[1722204965158,0.02101976,68305.0,68304.0,1.12597636]
[1722204965363,0.02101976,68305.0,68304.0,0.12217746]
[1722204965576,0.02101976,68305.0,68304.0,0.24330046]
[1722204965777,0.01901976,68305.0,68304.0,0.47354646]
[1722204965977,0.13986563,68307.0,68306.0,0.065]
[1722204966247,0.13986563,68307.0,68304.0,0.05517746]
[1722204966248,0.08043189,68307.0,68304.0,0.17129946]
[1722204966454,0.07218189,68306.0,68304.0,0.014]
[1722204966668,0.07218189,68306.0,68303.0,0.34325]
[1722204966669,0.07218639,68305.0,68303.0,0.015]
[1722204966924,0.00825,68307.0,68305.0,0.015]
[1722204967149,0.00825,68307.0,68305.0,0.117121]
[1722204967150,0.07176566,68306.0,68305.0,0.117121]
[1722204967381,0.07176566,68306.0,68305.0,0.132121]
[1722204967607,0.07176566,68306.0,68305.0,0.226121]
[1722204967841,0.07176566,68306.0,68305.0,0.460364]
[1722204969085,0.00825,68307.0,68306.0,0.18212]
[1722204969321,0.00825,68307.0,68306.0,0.22612]
[1722204969558,0.08010901,68307.0,68305.0,0.018]
[1722204969787,0.11712,68306.0,68305.0,0.018]
[1722204970033,0.11712,68306.0,68305.0,0.024]
[1722204970034,0.07173726,68306.0,68305.0,0.024]
[1722204970262,0.07173726,68306.0,68305.0,0.141121]
[1722204970900,0.07173726,68306.0,68304.0,0.044]
[1722204971045,0.00825,68307.0,68305.0,0.343243]
[1722204971280,0.00825,68307.0,68306.0,0.08099742]
[1722204971415,0.08009896,68307.0,68306.0,0.06599742]
[1722204971619,0.08009896,68307.0,68306.0,0.008]
[1722204971860,0.08009896,68307.0,68306.0,0.016]
[1722204972047,0.08009896,68307.0,68306.0,0.14012]
[1722204972266,0.08009896,68307.0,68306.0,0.46836]
[1722204972469,0.08009896,68307.0,68306.0,0.23412]
[1722204972669,0.08009896,68307.0,68306.0,0.2403739]
[1722204973016,0.00825,68307.0,68306.0,0.3053739]
[1722204973143,0.00825,68307.0,68306.0,0.2403739]
[1722204973342,0.07996735,68307.0,68306.0,0.2403739]
[1722204973774,0.07996735,68307.0,68306.0,0.1963739]
[1722204974183,0.07996735,68307.0,68306.0,0.2403739]
[1722204974375,0.07996735,68307.0,68306.0,0.0872539]
[1722204974561,0.07996735,68307.0,68306.0,0.016]
[1722204974969,0.19708535,68307.0,68306.0,0.016]
[1722204975762,0.19708535,68307.0,68306.0,0.02716482]
[1722204976004,0.66555735,68307.0,68306.0,0.02716482]
[1722204976184,0.80555735,68307.0,68306.0,0.02716482]
[1722204976408,0.57132135,68307.0,68306.0,0.016]
[1722204976616,0.21996735,68307.0,68306.0,0.016]
[1722204976811,0.14270506,68307.0,68306.0,0.0271681]
[1722204977054,0.29080393,68307.0,68306.0,0.0271681]
[1722204977191,0.14270506,68307.0,68306.0,0.0191681]
[1722204977394,0.87639393,68307.0,68306.0,0.0191681]
[1722204977635,0.64615793,68307.0,68306.0,0.0191681]
[1722204977836,0.117121,68306.0,68303.0,0.0024782]
[1722204978085,0.07145506,68305.0,68303.0,0.0024782]
[1722204978262,0.117121,68306.0,68305.0,0.015]
[1722204978467,0.117121,68306.0,68304.0,0.015]
[1722204978468,0.18834068,68306.0,68304.0,0.015]
[1722204978683,0.18834068,68306.0,68303.0,0.0024782]
[1722204978684,0.07099684,68305.0,68303.0,0.0024782]
[1722204978809,0.07099684,68304.0,68303.0,0.0024782]
[1722204979209,0.05276217,68304.0,68303.0,0.0174782]
[1722204979482,0.11712,68306.0,68305.0,0.015]
[1722204979684,0.11712,68306.0,68303.0,0.0024782]
[1722204979685,0.1881162,68306.0,68303.0,0.0024782]
[1722204979886,0.1881172,68305.0,68303.0,0.0024782]
[1722204980039,0.0709962,68304.0,68303.0,0.0024782]
[1722204980666,0.1881172,68305.0,68303.0,0.0024782]
[1722204980870,0.0709962,68304.0,68303.0,0.0024782]
[1722204981540,0.0709962,68304.0,68303.0,0.0674782]
[1722204982211,0.0709962,68304.0,68303.0,0.065924]
[1722204982414,0.21911046,68305.0,68303.0,0.109924]
[1722204982690,0.05287907,68304.0,68303.0,0.109924]
[1722204982862,0.07123584,68304.0,68303.0,0.109924]
[1722204983220,0.20101586,68304.0,68303.0,0.1114782]
[1722204983422,0.21937263,68304.0,68303.0,0.1114782]
[1722204985330,0.07123584,68304.0,68303.0,0.109924]
[1722204985531,0.07123584,68304.0,68303.0,0.00245228]
[1722204985715,0.07123584,68304.0,68303.0,0.04645228]
[1722204985918,0.11712,68306.0,68303.0,0.04645228]
[1722204986135,0.070998,68305.0,68303.0,0.04645228]
[1722204986697,0.07099781,68304.0,68303.0,0.04645228]
[1722204987083,0.07099781,68304.0,68303.0,0.00245228]
[1722204987672,0.07099781,68304.0,68303.0,0.000924]
[1722204988409,0.117122,68305.0,68303.0,0.000924]
[1722204988607,0.18738307,68304.0,68303.0,0.000924]
[1722204989371,1.14725428,68304.0,68303.0,0.000924]
[1722204989530,1.25325428,68304.0,68303.0,0.000924]
[1722204990608,1.21825428,68304.0,68303.0,0.000924]
[1722204990816,1.22800914,68304.0,68303.0,0.000924]
[1722204991214,1.14380914,68304.0,68303.0,0.000924]
[1722204991415,1.18480914,68304.0,68303.0,0.001924]
[1722204991626,1.18480914,68304.0,68303.0,0.000924]
[1722204991627,1.17880914,68304.0,68303.0,0.000924]
[1722204991825,1.14380914,68304.0,68303.0,0.000924]
[1722204992049,1.18480914,68304.0,68303.0,0.001924]
[1722204992305,1.12171586,68304.0,68303.0,0.002924]
[1722204992512,1.19133097,68304.0,68303.0,0.002924]
[1722204992684,1.15633097,68304.0,68303.0,0.002924]
[1722204993445,1.42557697,68304.0,68303.0,0.002924]
[1722204995219,1.44857697,68304.0,68303.0,0.002924]
[1722204995673,1.59283607,68304.0,68303.0,0.002924]
[1722204995873,1.59283607,68304.0,68277.0,0.0624]
[1722204995874,0.0633,68279.0,68273.0,0.044]
[1722204996073,0.351523,68274.0,68273.0,0.044]
[1722204996244,0.06922105,68274.0,68273.0,0.0455542]
[1722204996445,0.05190372,68274.0,68273.0,0.18774562]
[1722204996652,0.06922105,68275.0,68273.0,0.25274562]
[1722204996848,0.06922105,68275.0,68274.0,0.109]
[1722204997094,0.06922105,68275.0,68274.0,0.044]
[1722204997293,0.06922105,68275.0,68274.0,0.109]
[1722204997846,0.351523,68274.0,68273.0,0.067]
[1722204997959,0.351523,68274.0,68273.0,0.055]
[1722204997960,0.42074405,68274.0,68273.0,0.055]
[1722204998166,0.18639505,68274.0,68273.0,0.044]
[1722204998477,0.06922105,68274.0,68273.0,0.1342825]
[1722204998678,0.06978226,68274.0,68273.0,0.1327283]
[1722204999282,0.20129166,68274.0,68273.0,0.1327283]
[1722204999505,0.20129166,68274.0,68273.0,0.1427283]
[1722204999506,0.20229166,68274.0,68273.0,0.1427283]
[1722205000066,0.01860369,68274.0,68273.0,0.1427283]
[1722205000271,0.01860369,68274.0,68273.0,0.119]
[1722205000783,0.01960369,68274.0,68273.0,0.85111179]
[1722205000970,0.01960369,68274.0,68273.0,0.92841179]
[1722205001173,0.10724968,68274.0,68273.0,0.92841179]
[1722205001380,0.10724968,68274.0,68273.0,0.3855]
[1722205001614,0.01960369,68274.0,68273.0,0.203324]
[1722205001819,0.002,68274.0,68273.0,0.268324]
[1722205002025,0.01998372,68274.0,68273.0,0.268324]
[1722205002316,0.01998372,68274.0,68273.0,0.619853]
[1722205002520,0.01998372,68274.0,68273.0,0.71278748]
[1722205002688,0.12951544,68274.0,68273.0,0.619853]
[1722205003506,0.12951544,68274.0,68273.0,0.3855]
[1722205003708,0.01998372,68274.0,68273.0,0.3855]
[1722205003908,0.12950235,68274.0,68273.0,0.3855]
[1722205004087,0.12950171,68274.0,68273.0,0.619853]
[1722205004295,0.01998372,68274.0,68273.0,0.7052745]
[1722205005086,0.01993786,68274.0,68273.0,0.7052745]
[1722205005331,0.01993786,68274.0,68273.0,1.299059]
[1722205005704,0.002,68274.0,68273.0,1.299059]
[1722205005909,0.002,68274.0,68273.0,1.687912]
[1722205006477,0.002,68274.0,68273.0,1.737912]
[1722205006732,0.001,68274.0,68273.0,1.727912]
[1722205006902,0.001,68274.0,68273.0,1.677912]
[1722205007239,0.001,68274.0,68273.0,1.727912]
[1722205007451,0.001,68274.0,68273.0,2.21252457]
[1722205007661,0.04378853,68289.0,68288.0,0.109]
[1722205007872,0.0656828,68291.0,68290.0,0.53835162]
[1722205007873,0.04378853,68291.0,68290.0,0.53835162]
[1722205008076,0.0180988,68291.0,68290.0,0.61975678]
[1722205008274,0.13134151,68302.0,68301.0,0.015]
[1722205008535,0.20207631,68302.0,68301.0,0.015]
[1722205008742,0.30207631,68302.0,68301.0,0.015]
[1722205008942,0.117128,68301.0,68300.0,0.0015542]
[1722205009176,0.35235599,68301.0,68296.0,0.0455542]
[1722205009384,0.117133,68299.0,68296.0,0.0455542]
[1722205009552,0.01809899,68298.0,68297.0,0.01125394]
[1722205009777,0.01809899,68298.0,68297.0,0.01280814]
[1722205010770,0.01809899,68298.0,68297.0,0.02780814]
[1722205010956,0.01809899,68298.0,68297.0,0.01125394]
[1722205011159,0.01809899,68298.0,68297.0,0.01280814]
[1722205011519,0.01809899,68298.0,68297.0,0.02780814]
[1722205012142,0.01809899,68298.0,68297.0,0.14494314]
[1722205012339,0.01809899,68298.0,68297.0,0.14338894]
[1722205012520,0.01809899,68298.0,68297.0,0.14484109]
[1722205012717,0.01909899,68298.0,68297.0,0.14484109]
[1722205014102,0.01909899,68298.0,68297.0,0.02770609]
[1722205014334,0.01909899,68298.0,68297.0,0.14484109]
[1722205014535,0.01909899,68298.0,68297.0,0.01270609]
[1722205015247,0.001,68298.0,68297.0,0.01270609]
[1722205015421,0.118133,68298.0,68297.0,0.01270609]
[1722205015622,0.01898534,68298.0,68297.0,0.01125394]
[1722205016057,0.01898534,68298.0,68297.0,0.01272891]
[1722205017947,0.035,68294.0,68293.0,0.0015542]
[1722205018167,0.035,68294.0,68286.0,0.094]
[1722205018168,0.117147,68290.0,68289.0,0.0015542]
[1722205018365,0.07047604,68290.0,68289.0,0.02573361]
[1722205018573,0.01796469,68290.0,68289.0,0.14288261]
[1722205018793,0.1314328,68296.0,68293.0,0.0752]
[1722205019122,0.234271,68297.0,68294.0,0.0107288]
[1722205019123,0.07047452,68295.0,68294.0,0.0107288]
[1722205019325,0.117138,68295.0,68294.0,0.0107288]
[1722205019630,0.18761252,68295.0,68294.0,0.0107288]
[1722205019923,0.18761252,68295.0,68294.0,0.0091746]
[1722205020424,0.07047452,68295.0,68294.0,0.0241746]
[1722205020627,0.07047452,68296.0,68294.0,0.0241746]
[1722205020802,0.117138,68295.0,68294.0,0.0091746]
[1722205021007,0.16966875,68295.0,68293.0,0.0015542]
[1722205021208,0.07051525,68294.0,68293.0,0.0015542]
[1722205022010,0.07051525,68294.0,68293.0,0.366426]
[1722205022196,0.001,68296.0,68295.0,0.109]
[1722205022398,0.01826544,68296.0,68295.0,0.226138]
[1722205022518,0.13146297,68299.0,68298.0,0.109]
[1722205022724,0.07105717,68299.0,68298.0,0.5391]
[1722205022919,0.07105717,68299.0,68298.0,0.59921]
[1722205023142,0.07105717,68299.0,68298.0,0.5391]
[1722205023348,0.217125,68303.0,68299.0,0.167131]
[1722205023699,0.13146339,68300.0,68299.0,0.049]
[1722205023890,0.217125,68303.0,68300.0,0.015]
[1722205024089,0.117963,68304.0,68303.0,0.015]
[1722205024266,0.28825881,68304.0,68301.0,0.0165542]
[1722205024444,0.28742181,68303.0,68301.0,0.0015542]
[1722205024643,0.101,68303.0,68302.0,0.015]
[1722205024856,0.1712958,68303.0,68302.0,0.015]
[1722205025058,0.1702958,68303.0,68302.0,0.131126]
[1722205025264,0.1702958,68303.0,68302.0,0.14028359]
[1722205025468,0.1702958,68303.0,68302.0,0.02315759]
[1722205025684,0.0702958,68303.0,68302.0,0.02315759]
[1722205025910,0.10184,68304.0,68303.0,0.014]
[1722205026089,0.17217251,68304.0,68302.0,0.02315759]
[1722205026308,0.10184,68304.0,68303.0,0.00970954]
[1722205026673,0.07217208,68304.0,68303.0,0.28861459]
[1722205026880,0.07217208,68304.0,68303.0,0.46753034]
[1722205028029,0.07117208,68304.0,68303.0,0.46753034]
[1722205028239,0.07117208,68304.0,68303.0,0.17028034]
[1722205028462,0.07117208,68304.0,68303.0,0.16928034]
[1722205028610,0.07117208,68304.0,68303.0,0.17228034]
[1722205029274,0.07117208,68304.0,68303.0,0.17528034]
[1722205029469,0.07117208,68304.0,68303.0,0.17228034]
[1722205029643,0.07117208,68304.0,68303.0,0.16983454]
[1722205029851,0.07060001,68304.0,68303.0,0.17228034]
[1722205030256,0.07060001,68304.0,68303.0,0.17528034]
[1722205030656,0.07060001,68304.0,68303.0,0.05815534]
[1722205031079,0.07060001,68304.0,68303.0,0.01415534]
[1722205031344,0.24862301,68304.0,68303.0,0.01415534]
[1722205031543,0.71711501,68304.0,68303.0,0.01415534]
[1722205031934,0.71711501,68304.0,68303.0,0.006]
[1722205032131,1.32860701,68304.0,68303.0,0.006]
[1722205032263,1.40560701,68304.0,68303.0,0.006]
[1722205032651,1.40560701,68304.0,68303.0,0.003]
[1722205033050,1.40557398,68304.0,68303.0,0.004]
[1722205033284,1.40557398,68304.0,68303.0,0.001]
[1722205033505,1.40589183,68304.0,68303.0,0.002]
[1722205033711,1.17164583,68304.0,68303.0,0.002]
[1722205034963,1.40589183,68304.0,68303.0,0.001]
[1722205035320,1.64468104,68304.0,68303.0,0.002]
[1722205035563,1.87892704,68304.0,68303.0,0.002]
[1722205035762,1.42889183,68304.0,68303.0,0.002]
[1722205036164,1.42764917,68304.0,68303.0,0.002]
[1722205036392,1.42764927,68304.0,68303.0,0.002]
[1722205037387,1.43744832,68304.0,68303.0,0.002]
[1722205038554,1.40144832,68304.0,68303.0,0.002]
[1722205038669,1.43744832,68304.0,68303.0,0.002]
[1722205042692,0.16014,68294.0,68293.0,0.000924]
[1722205042918,1.16814069,68294.0,68293.0,0.000924]
[1722205044323,1.40242169,68294.0,68293.0,0.000924]
[1722205045360,1.40642169,68294.0,68293.0,0.000924]
[1722205045517,1.41042169,68294.0,68293.0,0.000924]
[1722205045720,1.342564,68294.0,68293.0,0.000924]
[1722205045927,1.41079126,68294.0,68293.0,0.000924]
[1722205046152,1.62674552,68294.0,68293.0,0.000924]
[1722205046596,1.41079126,68294.0,68293.0,0.000924]
[1722205049188,1.41098307,68294.0,68293.0,0.000924]
[1722205052351,1.35240151,68294.0,68293.0,0.000924]
[1722205052592,1.42038804,68294.0,68293.0,0.000924]
[1722205053851,1.44338804,68294.0,68293.0,0.000924]
[1722205054313,0.160161,68282.0,68281.0,0.0005542]
[1722205054457,0.621812,68281.0,68280.0,0.0753]
[1722205054628,0.92412353,68281.0,68280.0,0.0753]
[1722205054827,0.88812353,68281.0,68280.0,0.0753]
[1722205055049,0.820137,68281.0,68280.0,0.0753]
[1722205055255,0.65343845,68281.0,68280.0,0.1414]
[1722205055456,0.117162,68281.0,68280.0,0.1554]
[1722205055662,0.351477,68283.0,68282.0,0.0908]
[1722205055888,0.56740314,68283.0,68282.0,0.0878]
[1722205056107,0.41935454,68283.0,68282.0,0.16307862]
[1722205056308,0.41935454,68283.0,68282.0,0.16007862]
[1722205056512,0.41935454,68283.0,68282.0,0.15807862]
[1722205056715,0.06787754,68283.0,68282.0,0.39658278]
[1722205056915,0.06787754,68283.0,68282.0,0.19607862]
[1722205056916,0.18503654,68283.0,68282.0,0.19607862]
[1722205057115,0.42435454,68283.0,68282.0,0.19607862]
[1722205057348,0.41935454,68283.0,68282.0,0.19607862]
[1722205057506,0.06787754,68283.0,68282.0,0.25107862]
[1722205057977,0.07187754,68283.0,68282.0,0.25107862]
[1722205058215,0.07187754,68283.0,68282.0,0.68625328]
[1722205058418,0.06787754,68283.0,68282.0,0.92057528]
[1722205058585,0.06887754,68283.0,68282.0,0.68625328]
[1722205058770,0.06864843,68283.0,68282.0,0.68625328]
[1722205059151,0.06764843,68283.0,68282.0,0.68625328]
[1722205059359,0.07164843,68283.0,68282.0,0.68625328]
[1722205059554,0.06764843,68283.0,68282.0,0.68825328]
[1722205059876,0.06764843,68283.0,68282.0,0.60456162]
[1722205060117,0.06764843,68283.0,68282.0,0.60956162]
[1722205060270,0.06764843,68283.0,68282.0,0.37523962]
[1722205060669,0.06764843,68283.0,68282.0,0.25807862]
[1722205060890,0.06764843,68283.0,68282.0,0.37523962]
[1722205061970,0.18480743,68283.0,68282.0,0.15907862]
[1722205062175,0.1844705,68283.0,68282.0,0.15907862]
[1722205062597,0.13346737,68283.0,68282.0,0.15907862]
[1722205062799,0.41872415,68283.0,68282.0,0.16507862]
[1722205062953,0.41872415,68283.0,68282.0,0.15907862]
[1722205063162,0.41872415,68283.0,68282.0,0.15707862]
[1722205063375,0.41872415,68283.0,68282.0,0.16207862]
[1722205063934,0.41872415,68283.0,68282.0,0.15207862]
[1722205064073,0.42272415,68283.0,68282.0,0.15207862]
[1722205064725,0.42289969,68283.0,68282.0,0.15807862]
[1722205064975,0.42289969,68283.0,68282.0,0.15207862]
[1722205065206,0.42289969,68283.0,68282.0,0.15807862]
[1722205065207,0.004,68283.0,68282.0,0.15807862]
[1722205065359,0.07142192,68283.0,68282.0,0.2879585]
[1722205065561,0.07142192,68283.0,68282.0,0.4056737]
[1722205065774,0.07142192,68283.0,68282.0,0.6399957]
[1722205065775,0.06942192,68283.0,68282.0,0.6399957]
[1722205065946,0.06742192,68283.0,68282.0,0.6394415]
[1722205066143,0.26523309,68287.0,68285.0,0.053]
[1722205066144,0.117154,68286.0,68285.0,0.053]
[1722205066344,0.06747837,68286.0,68285.0,0.1264]
[1722205066571,0.12620137,68286.0,68285.0,0.13556657]
[1722205066775,0.24335537,68286.0,68285.0,0.12856657]
[1722205066973,0.24335537,68286.0,68285.0,0.18012077]
[1722205067201,0.12620137,68286.0,68285.0,0.12912077]
[1722205067599,0.24435537,68286.0,68285.0,0.08456657]
[1722205067803,0.24435537,68286.0,68285.0,0.08512077]
[1722205068000,0.24535537,68286.0,68285.0,0.08512077]
[1722205068339,0.24572685,68286.0,68285.0,0.08456657]
[1722205069235,0.24578066,68286.0,68285.0,0.08456657]
[1722205069358,0.48008866,68286.0,68285.0,0.08456657]
[1722205069557,0.24578066,68286.0,68285.0,0.08456657]
[1722205069758,0.24578066,68286.0,68285.0,0.12912077]
[1722205070272,0.24578066,68286.0,68285.0,0.12856657]
[1722205070481,0.48008866,68286.0,68285.0,0.08512077]
[1722205070684,0.24578066,68286.0,68285.0,0.17956657]
[1722205070835,0.24578066,68286.0,68285.0,0.12856657]
[1722205071003,0.24578066,68286.0,68285.0,0.12912077]
[1722205071447,0.24578066,68286.0,68285.0,0.08512077]
[1722205071644,0.48008866,68286.0,68285.0,0.08456657]
[1722205071857,0.47988736,68286.0,68285.0,0.0759542]
[1722205072059,0.71419536,68286.0,68285.0,0.0759542]